Cogmind - Beta 13 @@@ ROGUE MODE // 2024.04.06 @ 21:21:52 Player: Salamander Result: Destroyed by Y-45 Defender with Beam Rifle Performance ------------- Evolutions (1) 500 Regions Visited (3) 600 Robots Destroyed (25) 125 Value Destroyed (666) 666 Prototype IDs (0) 0 Alien Tech Used (0) 0 Bonus (0) 0 TOTAL SCORE: 1891 Bonus ------- None Cogmind --------- Core Integrity 0/400 Matter 350/350 Energy 39/100 System Corruption 0% Temperature Warm (171) Movement Core (250) Ox4 Location -9/Materials Parts ------- > --- POWER (1) -------- (None) > --- PROPULSION (3) --- (None) > --- UTILITY (3) ------ Medium Storage Unit Small Matter Pod > --- WEAPON (2) ------- Spread Laser > --- INVENTORY (10) --- Light Ion Engine Small Storage Unit Large Storage Unit Light Assault Rifle Mining Laser Peak State ------------ > --- POWER ------------ Ion Engine > --- PROPULSION ------- Light Treads Light Treads > --- UTILITY ---------- Medium Storage Unit Small Matter Pod Hardened Light Armor Plating > --- WEAPON ----------- Medium Laser Mini Grenade Launcher > --- INVENTORY -------- Light Ion Engine Light Ion Engine Light Ion Engine Wheel Wheel Small Storage Unit Large Storage Unit Spread Laser Mining Laser [Rating: 11] Favorites ----------- Power Ion Engine Engine Ion Engine Propulsion Light Treads Treads Light Treads Leg Aluminum Leg Wheel Wheel Utility Medium Storage Unit Storage Medium Storage Unit Protection Hardened Light Armor Plating Weapon Light Assault Rifle Energy Gun Medium Laser Ballistic Gun Light Assault Rifle Launcher Mini Grenade Launcher Impact Weapon Hammer Build | -11 -10 -10 -9 ------- Run | Yrd Mat Min Mat Slots Evolved 2 | . . . 2 Power . | . . . . Propulsion 1 | . . . 1 Utility 1 | . . . 1 Weapon . | . . . . Parts Attached 29 | 6 2 6 15 Power 5 | 1 . 1 3 Engine 5 | 1 . 1 3 Core . | . . . . Reactor . | . . . . Propulsion 11 | 2 . 2 7 Treads 3 | . . 2 1 Leg 4 | 2 . . 2 Wheel 4 | . . . 4 Hover . | . . . . Flight . | . . . . Utility 5 | 1 2 1 1 Device . | . . . . Storage 4 | 1 2 1 . Processor . | . . . . Hackware . | . . . . Protection 1 | . . . 1 Artifact . | . . . . Weapon 8 | 2 . 2 4 Energy Gun 3 | . . 1 2 Energy Cannon . | . . . . Ballistic Gun 3 | 2 . . 1 Ballistic Cannon . | . . . . Launcher 1 | . . . 1 Special Weapon . | . . . . Impact Weapon 1 | . . 1 . Slashing Weapon . | . . . . Piercing Weapon . | . . . . Special Melee Weapon . | . . . . Unidentified Prototypes . | . . . . Parts Lost 17 | . . 5 12 Power 4 | . . 1 3 Propulsion 7 | . . 2 5 Utility 1 | . . . 1 Weapon 5 | . . 2 3 Highest Loss Streak 7 | . . 4 7 To Critical Strikes 1 | . . 1 . Average Slot Usage (%) 81 | . 85 84 78 Engine 11 | . 14 13 9 Treads 11 | . . 24 6 Leg 9 | . 28 1 7 Wheel 2 | . . . 4 Storage 18 | . 14 16 22 Protection 2 | . . . 6 Energy Gun 7 | . . 11 6 Ballistic Gun 8 | . 28 3 4 Launcher 4 | . . . 10 Impact Weapon 4 | . . 11 . Naked Turns . | . . . . Heaviest Build 27 | 12 27 20 24 Greatest Support 40 | 20 20 40 40 Greatest Overweight (x) 4 | . 1 1 4 Average Overweight (x) . | . . . . Largest Inventory Capacity 15 | 8 15 10 10 Average Capacity 10 | 6 10 10 10 Most Carried 10 | 4 10 10 10 Average Carried 7 | 2 7 6 8 Final Capacity 10 | 8 10 10 10 Final Carried 10 | 4 10 8 5 Class Distribution -------------------- 100% | Mutant Dominant Class ---------------- Mutant | -10/Materials Mutant | -10/Mines Mutant | -9/Materials Resources | -11 -10 -10 -9 ----------- Run | Yrd Mat Min Mat Matter Collected 688 | 214 45 170 259 Remotely . | . . . . Salvage Created 848 | . 45 170 633 Parts 35 | . 4 2 29 Haulers Intercepted . | . . . . Recyclers Shooed . | . . . . Parts Field Recycled . | . . . . Retrieved Matter . | . . . . Parts Self-Destructed . | . . . . Prevented . | . . . . Kills | -11 -10 -10 -9 ------- Run | Yrd Mat Min Mat Combat Hostiles Destroyed 35 | . 3 14 18 Melee 6 | . . 6 . Guns 26 | . 3 7 16 AOE 1 | . . . 1 Classes Destroyed 6 | . 1 2 3 Swarmer 10 | . 3 3 4 Grunt 12 | . . . 12 Duelist 1 | . . . 1 Sentry 1 | . . . 1 Demolisher 1 | . . 1 . Assembled 10 | . . 10 . Best Kill Streak 4 | . 3 4 4 Combat Bots Only 4 | . 3 4 4 Max Kills in Single Turn 2 | . 1 1 2 Gunslinging . | . . . . Exploded 1 | . . . 1 Melee 1 | . . 1 . Uniques/NPCs Destroyed . | . . . . Combat | -11 -10 -10 -9 -------- Run | Yrd Mat Min Mat Hostile Shots Fired 213 | . 15 60 138 Missed 50 | . 5 10 35 Damage Taken 2387 | . 83 952 1352 Core 615 | . 17 184 414 Absorbed by Shields . | . . . . Regen/Repaired (Parts) 123 | . . . 123 Core Remaining (%) 59 | 100 . 19 . Volleys Fired 139 | . 8 32 99 Largest 2 | . 2 2 2 Hottest 115 | . 40 50 115 Shots Fired 167 | . 16 51 100 Gun 166 | . 16 51 99 Cannon . | . . . . Launcher 1 | . . . 1 Special . | . . . . Kinetic 104 | . 16 45 43 Thermal 62 | . . 6 56 Explosive 1 | . . . 1 Electromagnetic . | . . . . Robot Hit Streak 14 | . 3 6 14 Robot Miss Streak 5 | . 3 5 3 Penetration Max . | . . . . Secondary Targets 3 | . 1 2 . Max Gunslinging Chain 1 | . 1 1 . Shots Hit Robots 120 | . 8 36 76 Core Hits 62 | . 4 21 37 Critical Kills 1 | . . 1 . Critical Parts Destroyed 3 | . . 2 1 Critical Strikes 9 | . . 4 5 Burn 5 | . . 1 4 Destroy 2 | . . 1 1 Smash 2 | . . 2 . Melee Attacks 14 | . . 14 . Impact 14 | . . 14 . Slashing . | . . . . Piercing . | . . . . Sneak Attacks . | . . . . Combat Hostiles . | . . . . Follow-up Attacks . | . . . . Damage Inflicted 1690 | . 69 532 1089 Guns 1333 | . 69 232 1032 Cannons . | . . . . Explosions 57 | . . . 57 Melee 300 | . . 300 . Ramming . | . . . . Kinetic 719 | . 69 208 442 Thermal 614 | . . 24 590 Explosive 57 | . . . 57 Electromagnetic . | . . . . Impact 300 | . . 300 . Slashing . | . . . . Piercing . | . . . . Highest Corruption . | . . . . Average Corruption . | . . . . Corruption Purged . | . . . . Corruption Blocked . | . . . . Overload Shots . | . . . . Overflow Damage 59 | . . 59 . Projectiles . | . . . . Explosions . | . . . . Melee 59 | . . 59 . Knockbacks . | . . . . Impact . | . . . . Kinetic . | . . . . Secondary . | . . . . Self-Inflicted Damage . | . . . . Shots . | . . . . Rammed . | . . . . Targets Rammed . | . . . . Kicked . | . . . . Crushed . | . . . . Highest Temperature 322 | . . 64 322 Average Temperature 79 | . . 27 93 Received Heat Transfer 686 | . . 200 486 Effects 2 | . . . 2 Interference 1 | . . . 1 Short Circuit 1 | . . . 1 Siege Activations . | . . . . Robots Corrupted . | . . . . Combat Hostiles . | . . . . Parts Fried . | . . . . Impact Corruptions 2 | . . 2 . Robots Melted 1 | . . . 1 Combat Hostiles 1 | . . . 1 Parts Melted 6 | . . . 6 Heat Transferred 1963 | . . 148 1815 Parts Sabotaged . | . . . . Parts Stolen . | . . . . Parts Stripped . | . . . . Power Chain Reactions . | . . . . Alert | -11 -10 -10 -9 ------- Run | Yrd Mat Min Mat Peak Influence 200 | . 85 113 200 Initial 33 | . . 33 . Average 66 | . 25 76 82 Maximum Alert Level 1 | . . . 1 Low Security (%) 98 | 100 100 100 97 Level 1 1 | . . . 2 Level 2 . | . . . . Level 3 . | . . . . Level 4 . | . . . . Level 5 . | . . . . High Security . | . . . . Max Security . | . . . . Squads Dispatched 2 | . 1 . 1 Investigation 1 | . . . 1 Extermination . | . . . . Reinforcement 1 | . 1 . . Assault . | . . . . Garrison . | . . . . Intercept . | . . . . Searches Triggered . | . . . . Construction Impeded . | . . . . Haulers Reinforced . | . . . . Active Scanning Responses . | . . . . Cargo Convoy Interrupts . | . . . . Stealth | -11 -10 -10 -9 --------- Run | Yrd Mat Min Mat Distress Signals . | . . . . Communications Jammed . | . . . . Distress Signals . | . . . . Times Spotted 44 | . 3 17 24 Peak Tracking Total 6 | . 3 6 6 Tactical Retreats 3 | . . 2 1 Traps | -11 -10 -10 -9 ------- Run | Yrd Mat Min Mat Traps Triggered . | . . . . Indirectly . | . . . . Trap Hack Attempts . | . . . . Triggered . | . . . . Disarmed . | . . . . Reprogrammed . | . . . . Reused . | . . . . Traps Extracted . | . . . . Installed . | . . . . Triggered . | . . . . Machines | -11 -10 -10 -9 ---------- Run | Yrd Mat Min Mat Machines Disabled . | . . . . Max in Single Turn . | . . . . Machines Repaired . | . . . . Machines Dismantled . | . . . . Machines Sabotaged . | . . . . Overloaded Fab Kills . | . . . . Hacking | -11 -10 -10 -9 --------- Run | Yrd Mat Min Mat Machines Accessed 4 | . 1 . 3 Terminals 3 | . 1 . 2 Fabricators . | . . . . Repair Stations 1 | . . . 1 Recycling Units . | . . . . Scanalyzers . | . . . . Garrison Access . | . . . . Total Hacks 10 | . 3 . 7 Successful 4 | . 1 . 3 Failed 6 | . 2 . 4 Catastrophic 1 | . 1 . . Database Lockouts . | . . . . Manual . | . . . . Terminals 7 | . 3 . 4 Fabricators . | . . . . Repair Stations 3 | . . . 3 Recycling Units . | . . . . Scanalyzers . | . . . . Garrison Access . | . . . . Terminal Hacks 2 | . 1 . 1 Robot Analysis 2 | . 1 . 1 Fabricator Hacks . | . . . . Repair Station Hacks 2 | . . . 2 Scan Component 1 | . . . 1 Repair 1 | . . . 1 Recycling Unit Hacks . | . . . . Scanalyzer . | . . . . Garrison Access Hacks . | . . . . Unauthorized Hacks . | . . . . Terminals . | . . . . Fabricators . | . . . . Repair Stations . | . . . . Recycling Units . | . . . . Scanalyzers . | . . . . Garrison Access . | . . . . Data Cores Recovered . | . . . . Used . | . . . . Hacking Detections 3 | . 1 . 2 Full Trace Events 2 | . 1 . 1 Feedback Events . | . . . . Feedback Blocked . | . . . . Robot Schematics Acquired . | . . . . Robots Built . | . . . . Authchips . | . . . . Time . | . . . . Total Robot Build Rating . | . . . . Part Schematics Acquired . | . . . . Parts Built . | . . . . Authchips . | . . . . Time . | . . . . Total Part Build Rating . | . . . . Parts Repaired 1 | . . . 1 Time 26 | . . . 26 Parts Recycled . | . . . . Recycled Matter . | . . . . Retrieved Matter . | . . . . Retrieved Components . | . . . . Parts Scanalyzed . | . . . . Part Schematics Acquired . | . . . . Parts Damaged . | . . . . Bothacking | -11 -10 -10 -9 ------------ Run | Yrd Mat Min Mat Used RIF Installer . | . . . . Robots Hacked . | . . . . Non-combat . | . . . . Combat . | . . . . Robot Hacks Applied . | . . . . Relay Couplers Released . | . . . . Fabnet Peak Effective % . | . . . . Robots Rewired . | . . . . Allies Hacked . | . . . . Hacks Repelled . | . . . . Allies | -11 -10 -10 -9 -------- Run | Yrd Mat Min Mat Total Allies . | . . . . Largest Group . | . . . . Highest-Rated Group . | . . . . Highest-Rated Ally . | . . . . Total Orders . | . . . . Ally Attacks . | . . . . Total Damage . | . . . . Kills . | . . . . Allies Corrupted . | . . . . Allies Melted . | . . . . Intel | -11 -10 -10 -9 ------- Run | Yrd Mat Min Mat Robot Analysis Total 2 | . 1 . 1 Derelict Logs Recovered . | . . . . Drone Launches . | . . . . Drone Recoveries . | . . . . Exploration | -11 -10 -10 -9 ------------- Run | Yrd Mat Min Mat Turns Passed 1603 | 60 314 554 675 Spaces Moved 737 | 41 196 251 249 Core 3 | 2 . . 1 Treads 333 | . . 244 89 Legs 330 | 39 196 7 88 Wheels 71 | . . . 71 Hover . | . . . . Flight . | . . . . Fastest Speed 50 | 50 120 160 80 Average Speed 148 | 116 134 160 152 Slowest Speed 250 | 120 190 190 250 Overloaded Moves . | . . . . Propulsion Burnouts . | . . . . Robots Hopped . | . . . . Cave-ins Triggered . | . . . . Exploration Rate (%) 29 | 4 28 62 25 Regions Visited 3 Branch Regions 1 Pre-discovered Areas . | . . . . Known Exits Taken . | . . . . Unknown Exits Taken 3 | 1 1 1 . Scrap Searched . | . . . . Spaces Dug . | . . . . Terrain Destroyed 3 | . . . 3 Melee . | . . . . Projectile . | . . . . AOE 3 | . . . 3 Terrain Rammed . | . . . . Walls Destroyed . | . . . . Machines Disabled . | . . . . Actions | -11 -10 -10 -9 --------- Run | Yrd Mat Min Mat Total 1068 | 50 234 335 449 Wait 119 | . 23 28 68 Move 734 | 40 195 250 249 Hop . | . . . . Pick Up 20 | 4 4 4 8 Fast Attach 12 | 6 2 1 3 Attach 17 | . . 5 12 Detach 7 | . 2 . 5 Swap . | . . . . Drop 6 | . . 1 5 Fire 139 | . 8 32 99 Melee 14 | . . 14 . Ram . | . . . . Kick . | . . . . Crush . | . . . . Escape Stasis . | . . . . Rewire . | . . . . Trap . | . . . . Miscellaneous . | . . . . Route ------- -11/Scrapyard -10/Materials -10/Mines -9/Materials History --------- Turn | Location | Event 9 | -11/Scrapyard | Discovered new exit (range 16) 61 | -11/Scrapyard | Entered Materials 302 | -10/Materials | Build established: Mutant 366 | -10/Materials | Discovered new exit (range 7) 375 | -10/Materials | Entered Mines 376 | -10/Mines | Assembled infested the area 444 | -10/Mines | Core integrity fell below 50% 462 | -10/Mines | Core integrity fell below 20% 494 | -10/Mines | Lost 4 parts (1p1n2w) 815 | -10/Mines | Discovered new exit (range 11) 929 | -10/Mines | Entered Materials 929 | -9/Materials | Evolved 2 slots: Propulsion x1, Utility x1 1014 | -9/Materials | Repaired Lgt. Treads 1419 | -9/Materials | Core integrity fell below 50% 1478 | -9/Materials | Lost 4 parts (1p1n1u1w) 1587 | -9/Materials | Core integrity fell below 20% 1604 | -9/Materials | Destroyed by Y-45 Defender with Beam Rifle Last Messages --------------- Acquired Lgt. Assault Rifle. Y-45 Defender suffers critical hit (Burn). Lgt. Ion Engine destroyed. Material Processor disabled. S-10 Pest destroyed. Aluminum Leg destroyed. Hvy. Assault Rifle melted. Heat Sink melted. Lgt. Treads melted. Heat Sink melted. Y-45 Defender destroyed. Acquired 10 matter. Mni. Grenade Launcher destroyed. Lgt. Ion Engine destroyed. Wheel destroyed. L-31 Rogue suffers critical hit (Burn). Med. Laser destroyed. Wheel destroyed. L-31 Rogue destroyed. Critical hit (Burn: +37). Map ----- +----------------------------------------------------+ | ??????????# ## ????????????????????????????? | | ??????????#### ## ?????????????????????????????? | | ?????????????# ##+#??????????????????????????????? | | ??????######## #??????????????????????????????? | | ??????# # #??????????????????????????????? | | ??????# # %#??????????????????????????????? | | ??????# %+= #??????????????????????????????? | | ??????# =#### #??????????????????????????????? | | ??????# #??#%#??????????????????????????????? | | ??????# #??# #??????????????????????????????? | | ??????########??# #??????????????????????????????? | | ???????????????## ##?????????????????????????????? | | ???????????????# #?????????????????????????????? | | ???????????????# #?????????????????????????????? | | ?????#########?# #?????????????????????????????? | | ?????# T ?# #?????????????????????????????? | | ?????# # ##+########???????????????????? | | ?????# # #???????????????????? | | ????????"" """ + +???????????????????? | | ????????"" """ # #???????????????????? | | ????????"" """ # ##+########???????????????????? | | ???????? ?# # #????????????????????? | | ???????? ! ?# # #????????????????????? | | ???????#####+??# # [Yg #????????????????????? | | ???????????????# # """%! #????????????????????? | | ???????????????# #"""""@ #????????????????????? | | ???????????????# #"""" #????????????????????? | | ???????????????# #"""""% #????????????????????? | | ???????????????# # """ #????????????????????? | | ???????????????# # #????????????????????? | | ???????????????# #### #####????????????????????? | | ???????????????# #??##?????????????????????????? | | ???????????????# #?????????????????????????????? | | ???????????????? ??????????????????????????????? | | ?????????????????????????????????????????????????? | | ?????????????????????????????????????????????????? | | ?????????????????????????????????????????????????? | | ?????????????????????????????????????????????????? | | ?????????????????????????????????????????????????? | | ?????????????????????????????????????????????????? | | ?????????????????????????????????????????????????? | | ?????????????????????????????????????????????????? | | ?????????????????????????????????????????????????? | | ?????????????????????????????????????????????????? | | ?????????????????????????????????????????????????? | | ?????????????????????????????????????????????????? | | ?????????????????????????????????????????????????? | | ?????????????????????????????????????????????????? | | ?????????????????????????????????????????????????? | | | +----------------------------------------------------+ Best States ------------- Heat Dissipation 28 Energy Generation 10 Energy Capacity 250 Matter Stores 350 Matter Capacity 350 Sight Range 16 Terrain Scan Density 10 Armor Coverage 150 Evasion (%) 55 Recoil Reduction 2 Item Schematics ----------------- None Robot Schematics ------------------ None Fabricated ------------ Nothing Alien Tech Used ----------------- None Achievements -------------- None Challenges ------------ None Game ------ Seed UltimateUtilityNanovents Manual? 0 Play Time 00:18:57 Cumulative 6.4 hours Start 2024.04.06 @ 21:04:13 End 2024.04.06 @ 21:21:52 Sessions 1 Manual Loads 0 Difficulty Rogue Special Mode None Game No. 11 Rogue 11 Adventurer 0 Explorer 0 Win Type - Total 0 Types 0/0/0/0/0/0/0/0/0 Lore% 11 Gallery% 13 Achievement% 10 Wizard Run 0 Options --------- Layout 1 ASCII 0 Keyboard 1 Movement Numpad Keybinds 0 Fullscreen 1 Font 24/Smallcaps Map View 50x35 Zoom Use 0% Tactical HUD 0 Map Filters NONE Filters NONE Steam 1 RUN: c24bd88e-3213-49d1-bdee-635ce0e63e91